[Event "*** Titled Tuesday Blitz"]
[Site "Chess.com"]
[Date "2020.05.26"]
[Round "2"]
[White "lolo9292"]
[Black "Shield12"]
[Result "1-0"]
[WhiteElo "2549"]
[BlackElo "2815"]
[TimeControl "180+1"]
[EndTime "10:18:13 PDT"]
[Termination "lolo9292 won by resignation"]

1. d4 {[%clk 0:03:00.9]} 1... Nf6 {[%clk 0:02:59.9]} 2. c4 {[%clk 0:03:00.8]}
2... e6 {[%clk 0:03:00.4]} 3. Nc3 {[%clk 0:03:00.7]} 3... Bb4 {[%clk 0:03:00.1]}
4. Nf3 {[%clk 0:03:00.8]} 4... b6 {[%clk 0:02:59.4]} 5. Bd2 {[%clk 0:03:00.7]}
5... Bb7 {[%clk 0:02:59.1]} 6. e3 {[%clk 0:03:01.2]} 6... O-O {[%clk 0:02:57.5]}
7. Bd3 {[%clk 0:03:01.1]} 7... c5 {[%clk 0:02:57]} 8. a3 {[%clk 0:03:00.2]} 8...
Ba5 {[%clk 0:02:55.2]} 9. O-O {[%clk 0:02:58.9]} 9... Qe7 {[%clk 0:02:54.9]} 10.
Qe2 {[%clk 0:02:53.9]} 10... d6 {[%clk 0:02:48.3]} 11. Rab1 {[%clk 0:02:50]}
11... Bxc3 {[%clk 0:02:46.5]} 12. Bxc3 {[%clk 0:02:50.9]} 12... Ne4 {[%clk
0:02:46.6]} 13. Be1 {[%clk 0:02:48.9]} 13... Nd7 {[%clk 0:02:43.8]} 14. Rd1
{[%clk 0:02:47.6]} 14... Rad8 {[%clk 0:02:42.1]} 15. Bb1 {[%clk 0:02:46]} 15...
f5 {[%clk 0:02:38.7]} 16. Nd2 {[%clk 0:02:39.2]} 16... Nef6 {[%clk 0:02:26.4]}
17. f3 {[%clk 0:02:32.9]} 17... Rfe8 {[%clk 0:02:17.1]} 18. Bf2 {[%clk
0:02:23.2]} 18... Nf8 {[%clk 0:02:14]} 19. Rfe1 {[%clk 0:02:23.3]} 19... Ng6
{[%clk 0:02:13.3]} 20. Nf1 {[%clk 0:02:22.7]} 20... Qf7 {[%clk 0:02:08]} 21. Ng3
{[%clk 0:02:20.2]} 21... h6 {[%clk 0:02:05]} 22. d5 {[%clk 0:02:15.7]} 22...
exd5 {[%clk 0:02:02.9]} 23. Nxf5 {[%clk 0:02:12.9]} 23... d4 {[%clk 0:01:57.5]}
24. Qc2 {[%clk 0:01:52]} 24... dxe3 {[%clk 0:01:33.9]} 25. Bxe3 {[%clk
0:01:51.6]} 25... d5 {[%clk 0:01:34.2]} 26. Nxh6+ {[%clk 0:01:31]} 26... gxh6
{[%clk 0:01:33.5]} 27. Qxg6+ {[%clk 0:01:31.3]} 27... Qxg6 {[%clk 0:01:32.2]}
28. Bxg6 {[%clk 0:01:32.2]} 28... Re6 {[%clk 0:01:19.9]} 29. Bxh6 {[%clk
0:01:26.4]} 29... Rxe1+ {[%clk 0:01:13.7]} 30. Rxe1 {[%clk 0:01:27.3]} 30...
dxc4 {[%clk 0:01:13.7]} 31. Re7 {[%clk 0:01:25.2]} 31... Rd7 {[%clk 0:01:09]}
32. Rxd7 {[%clk 0:01:20.9]} 32... Nxd7 {[%clk 0:01:08.7]} 33. Bf5 {[%clk
0:01:20.1]} 33... Ne5 {[%clk 0:01:07.9]} 34. Be6+ {[%clk 0:01:16.7]} 34... Kh7
{[%clk 0:01:06.3]} 35. Bd2 {[%clk 0:01:16.5]} 35... b5 {[%clk 0:01:05.5]} 36. f4
{[%clk 0:01:13.7]} 36... Ng6 {[%clk 0:01:04.6]} 37. g3 {[%clk 0:01:09.3]} 37...
Ne7 {[%clk 0:01:03.7]} 38. g4 {[%clk 0:01:07.5]} 38... Bd5 {[%clk 0:01:00.3]}
39. Bd7 {[%clk 0:01:04.8]} 39... a6 {[%clk 0:00:58.8]} 40. h4 {[%clk 0:01:03.6]}
40... Be4 {[%clk 0:00:56]} 41. f5 {[%clk 0:01:01.5]} 41... Nd5 {[%clk
0:00:56.2]} 42. g5 {[%clk 0:00:58.9]} 42... b4 {[%clk 0:00:55.1]} 43. axb4
{[%clk 0:00:56.7]} 43... cxb4 {[%clk 0:00:55.1]} 44. h5 {[%clk 0:00:54.1]} 44...
c3 {[%clk 0:00:49.5]} 45. g6+ {[%clk 0:00:52.4]} 45... Kh8 {[%clk 0:00:42]} 46.
bxc3 {[%clk 0:00:50.7]} 46... b3 {[%clk 0:00:42]} 47. Bc1 {[%clk 0:00:48.5]}
47... Nf6 {[%clk 0:00:38.4]} 48. Be6 {[%clk 0:00:41.5]} 48... Nxh5 {[%clk
0:00:38.3]} 49. c4 {[%clk 0:00:40.7]} 49... Kg7 {[%clk 0:00:29.3]} 50. c5 {[%clk
0:00:36.7]} 50... a5 {[%clk 0:00:19.9]} 51. Kf2 {[%clk 0:00:36.3]} 51... a4
{[%clk 0:00:19.2]} 52. Ke3 {[%clk 0:00:36.7]} 52... Bc6 {[%clk 0:00:18.4]} 53.
Kd4 {[%clk 0:00:36.9]} 53... Ng3 {[%clk 0:00:16.6]} 54. Ke5 {[%clk 0:00:36.6]}
54... Nf1 {[%clk 0:00:10.9]} 55. f6+ {[%clk 0:00:33.6]} 55... Kxg6 {[%clk
0:00:10.6]} 56. f7 {[%clk 0:00:33.8]} 56... Kg7 {[%clk 0:00:10.8]} 57. Bh6+
{[%clk 0:00:33.9]} 1-0

[Event "*** Titled Tuesday Blitz"]
[Site "Chess.com"]
[Date "2020.05.26"]
[Round "2"]
[White "wonderfultime"]
[Black "iLuusions"]
[Result "1-0"]
[WhiteElo "2971"]
[BlackElo "2585"]
[TimeControl "180+1"]
[EndTime "10:18:15 PDT"]
[Termination "wonderfultime won by resignation"]

1. d4 {[%clk 0:03:00.9]} 1... Nf6 {[%clk 0:02:59.7]} 2. Nf3 {[%clk 0:02:58.5]}
2... e6 {[%clk 0:02:59.3]} 3. Bf4 {[%clk 0:02:58]} 3... d5 {[%clk 0:02:59.6]} 4.
e3 {[%clk 0:02:58.1]} 4... Bd6 {[%clk 0:02:57.8]} 5. Bg3 {[%clk 0:02:58.4]} 5...
O-O {[%clk 0:02:57.9]} 6. c4 {[%clk 0:02:58.9]} 6... b6 {[%clk 0:02:55.3]} 7.
Nc3 {[%clk 0:02:58.7]} 7... a6 {[%clk 0:02:51.1]} 8. cxd5 {[%clk 0:02:59]} 8...
exd5 {[%clk 0:02:51.1]} 9. Bd3 {[%clk 0:02:58]} 9... Bb7 {[%clk 0:02:51.5]} 10.
O-O {[%clk 0:02:55]} 10... Qe7 {[%clk 0:02:50.1]} 11. Bh4 {[%clk 0:02:51]} 11...
Nbd7 {[%clk 0:02:45.8]} 12. Qc2 {[%clk 0:02:50.3]} 12... h6 {[%clk 0:02:39]} 13.
Rae1 {[%clk 0:02:46.9]} 13... g5 {[%clk 0:02:12.7]} 14. Bg3 {[%clk 0:02:45]}
14... Rfe8 {[%clk 0:01:51.8]} 15. Ne2 {[%clk 0:02:17.8]} 15... Ne4 {[%clk
0:01:39.7]} 16. Bxd6 {[%clk 0:02:17]} 16... Qxd6 {[%clk 0:01:37.1]} 17. Ng3
{[%clk 0:02:17.6]} 17... Nxg3 {[%clk 0:01:28.1]} 18. hxg3 {[%clk 0:02:16.3]}
18... Nf6 {[%clk 0:01:28.3]} 19. Ne5 {[%clk 0:02:14.4]} 19... c5 {[%clk
0:01:23.7]} 20. Bf5 {[%clk 0:02:11.3]} 20... Ne4 {[%clk 0:01:13.3]} 21. g4
{[%clk 0:01:54.7]} 21... f6 {[%clk 0:00:55.8]} 22. Nf3 {[%clk 0:01:52.2]} 22...
Kg7 {[%clk 0:00:56.1]} 23. dxc5 {[%clk 0:01:43.3]} 23... bxc5 {[%clk 0:00:53]}
24. Rc1 {[%clk 0:01:43.8]} 24... Bc8 {[%clk 0:00:41.7]} 25. Bxe4 {[%clk
0:01:27.2]} 25... dxe4 {[%clk 0:00:40.7]} 26. Nh2 {[%clk 0:01:27.7]} 26... Be6
{[%clk 0:00:30.9]} 27. Rfd1 {[%clk 0:01:24.4]} 27... Qe5 {[%clk 0:00:24.5]} 28.
Qxc5 {[%clk 0:00:35.7]} 28... Qxb2 {[%clk 0:00:24]} 29. Rb1 {[%clk 0:00:27.4]}
29... Qe5 {[%clk 0:00:18.1]} 30. Rb7+ {[%clk 0:00:25.5]} 30... Kg8 {[%clk
0:00:18.3]} 31. Qxe5 {[%clk 0:00:15.3]} 31... fxe5 {[%clk 0:00:19.2]} 32. Nf1
{[%clk 0:00:12.5]} 32... Red8 {[%clk 0:00:16.3]} 33. Rxd8+ {[%clk 0:00:10.1]}
33... Rxd8 {[%clk 0:00:17.2]} 34. Ng3 {[%clk 0:00:09.8]} 34... Bxg4 {[%clk
0:00:14.4]} 35. Nxe4 {[%clk 0:00:09.4]} 35... Rd1+ {[%clk 0:00:12.3]} 36. Kh2
{[%clk 0:00:09.4]} 36... Be6 {[%clk 0:00:12.6]} 37. Rb6 {[%clk 0:00:08.1]} 37...
Bxa2 {[%clk 0:00:12]} 38. Rxa6 {[%clk 0:00:08.4]} 38... Bc4 {[%clk 0:00:09]} 39.
Rxh6 {[%clk 0:00:07.6]} 39... Kg7 {[%clk 0:00:08.8]} 40. Rb6 {[%clk 0:00:07.8]}
40... Bf7 {[%clk 0:00:08.6]} 41. Nxg5 {[%clk 0:00:07.5]} 41... Bg6 {[%clk
0:00:08.9]} 42. Rb7+ {[%clk 0:00:06.9]} 42... Kf6 {[%clk 0:00:08.8]} 43. Nf3
{[%clk 0:00:07.3]} 43... Bh5 {[%clk 0:00:07]} 44. Rb6+ {[%clk 0:00:07.4]} 44...
Kf5 {[%clk 0:00:07.6]} 45. Nh4+ {[%clk 0:00:07.7]} 45... Kg4 {[%clk 0:00:07.9]}
46. Nf3 {[%clk 0:00:07.1]} 46... Kf5 {[%clk 0:00:07.3]} 47. Kg3 {[%clk
0:00:07.5]} 47... Rd8 {[%clk 0:00:06.2]} 48. Nh4+ {[%clk 0:00:07]} 48... Kg5
{[%clk 0:00:05]} 49. f4+ {[%clk 0:00:06.8]} 1-0

[Event "*** Titled Tuesday Blitz"]
[Site "Chess.com"]
[Date "2020.05.26"]
[Round "2"]
[White "AlexTriapishko"]
[Black "ChessicallyInclined"]
[Result "0-1"]
[WhiteElo "2734"]
[BlackElo "2510"]
[TimeControl "180+1"]
[EndTime "10:18:16 PDT"]
[Termination "ChessicallyInclined won on time"]

1. d4 {[%clk 0:02:59.4]} 1... Nf6 {[%clk 0:02:59.1]} 2. c4 {[%clk 0:02:59.9]}
2... e6 {[%clk 0:02:57.9]} 3. Nf3 {[%clk 0:02:59.3]} 3... b6 {[%clk 0:02:57.7]}
4. a3 {[%clk 0:02:58.4]} 4... Bb7 {[%clk 0:02:56.3]} 5. Nc3 {[%clk 0:02:59]}
5... d5 {[%clk 0:02:56.2]} 6. cxd5 {[%clk 0:02:54]} 6... Nxd5 {[%clk 0:02:53.2]}
7. Qc2 {[%clk 0:02:54.4]} 7... Nd7 {[%clk 0:02:52.5]} 8. e4 {[%clk 0:02:51.8]}
8... Nxc3 {[%clk 0:02:52.6]} 9. bxc3 {[%clk 0:02:52.7]} 9... c5 {[%clk 0:02:52]}
10. Bd3 {[%clk 0:02:52.5]} 10... Rc8 {[%clk 0:02:50.9]} 11. Qe2 {[%clk
0:02:48.4]} 11... Qc7 {[%clk 0:02:49.7]} 12. O-O {[%clk 0:02:46.8]} 12... Be7
{[%clk 0:02:47.5]} 13. e5 {[%clk 0:02:20.6]} 13... cxd4 {[%clk 0:02:38.5]} 14.
cxd4 {[%clk 0:02:19.5]} 14... Bd5 {[%clk 0:02:38.6]} 15. Bd2 {[%clk 0:01:51.4]}
15... O-O {[%clk 0:02:23.4]} 16. Bb4 {[%clk 0:01:39.4]} 16... Rfe8 {[%clk
0:02:12.5]} 17. Bxe7 {[%clk 0:01:35.7]} 17... Rxe7 {[%clk 0:02:08.3]} 18. Ng5
{[%clk 0:01:23.9]} 18... h6 {[%clk 0:01:56.5]} 19. Ne4 {[%clk 0:01:22.8]} 19...
Bxe4 {[%clk 0:01:53.1]} 20. Qxe4 {[%clk 0:01:23.2]} 20... Nf8 {[%clk 0:01:53.3]}
21. Ba6 {[%clk 0:01:23.7]} 21... Rd8 {[%clk 0:01:52]} 22. Rac1 {[%clk
0:01:14.5]} 22... Qd7 {[%clk 0:01:50]} 23. Rc4 {[%clk 0:01:12.5]} 23... Qd5
{[%clk 0:01:16.8]} 24. Qxd5 {[%clk 0:00:58.7]} 24... Rxd5 {[%clk 0:01:14.7]} 25.
a4 {[%clk 0:00:24.2]} 25... Red7 {[%clk 0:01:08.2]} 26. Bb5 {[%clk 0:00:19.9]}
26... Rxd4 {[%clk 0:01:02]} 27. Rc8 {[%clk 0:00:18.8]} 27... R7d5 {[%clk
0:00:39.1]} 28. Ra8 {[%clk 0:00:17.6]} 28... a5 {[%clk 0:00:32.5]} 29. Re1
{[%clk 0:00:10.8]} 29... Rd1 {[%clk 0:00:28.9]} 30. Rxd1 {[%clk 0:00:05.2]}
30... Rxd1+ {[%clk 0:00:28.8]} 31. Bf1 {[%clk 0:00:06.1]} 31... g6 {[%clk
0:00:26.1]} 32. Rb8 {[%clk 0:00:05.6]} 32... Rb1 {[%clk 0:00:25]} 33. g3 {[%clk
0:00:05.7]} 33... Kg7 {[%clk 0:00:25.3]} 34. Kg2 {[%clk 0:00:05.5]} 34... Nd7
{[%clk 0:00:25]} 35. Rb7 {[%clk 0:00:04.6]} 35... Nc5 {[%clk 0:00:24.1]} 36. Rc7
{[%clk 0:00:03]} 36... Nxa4 {[%clk 0:00:21.6]} 37. Ba6 {[%clk 0:00:03.4]} 37...
Nc5 {[%clk 0:00:19.5]} 38. Bc4 {[%clk 0:00:03.5]} 38... a4 {[%clk 0:00:18.8]}
39. Ra7 {[%clk 0:00:02.7]} 39... Rb4 {[%clk 0:00:18.1]} 40. Bf1 {[%clk
0:00:02.2]} 40... b5 {[%clk 0:00:18.3]} 41. f4 {[%clk 0:00:02.4]} 41... Rb2+
{[%clk 0:00:18.1]} 42. Kf3 {[%clk 0:00:03]} 42... b4 {[%clk 0:00:15]} 43. Rc7
{[%clk 0:00:03.5]} 43... Rc2 {[%clk 0:00:15.3]} 44. Ke3 {[%clk 0:00:01.9]} 44...
b3 {[%clk 0:00:15.5]} 45. Kd4 {[%clk 0:00:01.6]} 45... b2 {[%clk 0:00:16]} 0-1

[Event "*** Titled Tuesday Blitz"]
[Site "Chess.com"]
[Date "2020.05.26"]
[Round "2"]
[White "WhiteCapital80"]
[Black "Larina_Marija"]
[Result "1-0"]
[WhiteElo "2404"]
[BlackElo "2127"]
[TimeControl "180+1"]
[EndTime "10:18:17 PDT"]
[Termination "WhiteCapital80 won on time"]

1. e4 {[%clk 0:03:00.9]} 1... d5 {[%clk 0:02:59.1]} 2. exd5 {[%clk 0:03:00.9]}
2... Qxd5 {[%clk 0:03:00]} 3. Nc3 {[%clk 0:03:01]} 3... Qa5 {[%clk 0:03:00.2]}
4. Nf3 {[%clk 0:03:00.8]} 4... Nf6 {[%clk 0:03:00.1]} 5. d4 {[%clk 0:03:00.7]}
5... Bf5 {[%clk 0:02:59.7]} 6. Bc4 {[%clk 0:02:55.7]} 6... e6 {[%clk 0:02:57.9]}
7. O-O {[%clk 0:02:55.6]} 7... Be7 {[%clk 0:02:54.6]} 8. Ne2 {[%clk 0:02:54.6]}
8... O-O {[%clk 0:02:48.2]} 9. Ng3 {[%clk 0:02:54.5]} 9... Bg6 {[%clk 0:02:47]}
10. c3 {[%clk 0:02:53.5]} 10... c5 {[%clk 0:02:45.3]} 11. Qe2 {[%clk 0:02:50.6]}
11... cxd4 {[%clk 0:02:34.8]} 12. Nxd4 {[%clk 0:02:50.5]} 12... Re8 {[%clk
0:02:17]} 13. Re1 {[%clk 0:02:34.5]} 13... Nbd7 {[%clk 0:02:15.4]} 14. Bf4
{[%clk 0:02:32]} 14... e5 {[%clk 0:01:34]} 15. Ndf5 {[%clk 0:02:11.2]} 15... Bf8
{[%clk 0:01:26.9]} 16. Bd2 {[%clk 0:02:03.6]} 16... Rad8 {[%clk 0:01:18.8]} 17.
b4 {[%clk 0:01:55.1]} 17... Qc7 {[%clk 0:01:17.2]} 18. Bb3 {[%clk 0:01:51.3]}
18... e4 {[%clk 0:01:12.7]} 19. h4 {[%clk 0:01:37.2]} 19... Qe5 {[%clk
0:01:02.3]} 20. Nd4 {[%clk 0:01:24.3]} 20... h6 {[%clk 0:00:57.5]} 21. Rad1
{[%clk 0:01:18.3]} 21... Nb6 {[%clk 0:00:54.8]} 22. Qb5 {[%clk 0:01:15.3]} 22...
Qb8 {[%clk 0:00:42.3]} 23. h5 {[%clk 0:01:07.2]} 23... Bh7 {[%clk 0:00:40.3]}
24. Ndf5 {[%clk 0:01:01.1]} 24... Re5 {[%clk 0:00:38.2]} 25. Bf4 {[%clk
0:00:52]} 25... Rxb5 {[%clk 0:00:36.5]} 26. Bxb8 {[%clk 0:00:51.2]} 26... Rxb8
{[%clk 0:00:37.4]} 27. f4 {[%clk 0:00:44.4]} 27... Bxf5 {[%clk 0:00:36.2]} 28.
a4 {[%clk 0:00:43.1]} 28... Bg4 {[%clk 0:00:29.1]} 29. axb5 {[%clk 0:00:39.5]}
29... Bxd1 {[%clk 0:00:28.2]} 30. Rxd1 {[%clk 0:00:39.8]} 30... Be7 {[%clk
0:00:24.9]} 31. Nf5 {[%clk 0:00:39.1]} 31... Kf8 {[%clk 0:00:22.3]} 32. Kf2
{[%clk 0:00:37.5]} 32... Rd8 {[%clk 0:00:22.2]} 33. Rxd8+ {[%clk 0:00:36.6]}
33... Bxd8 {[%clk 0:00:22.2]} 34. Nd6 {[%clk 0:00:36.6]} 34... Nfd5 {[%clk
0:00:21]} 35. Nxe4 {[%clk 0:00:34.5]} 35... f5 {[%clk 0:00:19.1]} 36. Nd6 {[%clk
0:00:33.5]} 36... Nxc3 {[%clk 0:00:18.1]} 37. Nxb7 {[%clk 0:00:33.5]} 37... Be7
{[%clk 0:00:18.5]} 38. Nc5 {[%clk 0:00:33]} 38... Nbd5 {[%clk 0:00:16.8]} 39.
Kf3 {[%clk 0:00:30.2]} 39... Nxb4 {[%clk 0:00:15.5]} 40. Ne6+ {[%clk 0:00:30.3]}
40... Ke8 {[%clk 0:00:14.7]} 41. Nxg7+ {[%clk 0:00:30.6]} 41... Kd7 {[%clk
0:00:15.1]} 42. Nxf5 {[%clk 0:00:30.9]} 42... Bf8 {[%clk 0:00:14.6]} 43. g4
{[%clk 0:00:28.9]} 43... Nxb5 {[%clk 0:00:13.7]} 44. g5 {[%clk 0:00:28.4]} 44...
Nd6 {[%clk 0:00:12.2]} 45. Nxh6 {[%clk 0:00:25.8]} 45... Bxh6 {[%clk 0:00:11.3]}
46. gxh6 {[%clk 0:00:26.1]} 46... Nc6 {[%clk 0:00:06.3]} 47. h7 {[%clk
0:00:24.9]} 47... Nd4+ {[%clk 0:00:06.3]} 48. Kg4 {[%clk 0:00:24.1]} 48... Nxb3
{[%clk 0:00:03.7]} 49. h8=Q {[%clk 0:00:24.5]} 49... Nc5 {[%clk 0:00:02.5]} 50.
Qg7+ {[%clk 0:00:23.5]} 50... Kc6 {[%clk 0:00:02.4]} 51. Qxa7 {[%clk 0:00:23.6]}
51... Kd5 {[%clk 0:00:02.4]} 52. h6 {[%clk 0:00:23.5]} 1-0

[Event "*** Titled Tuesday Blitz"]
[Site "Chess.com"]
[Date "2020.05.26"]
[Round "2"]
[White "ftorodent"]
[Black "rynos0411"]
[Result "1-0"]
[WhiteElo "2664"]
[BlackElo "2342"]
[TimeControl "180+1"]
[EndTime "10:18:19 PDT"]
[Termination "ftorodent won by resignation"]

1. d4 {[%clk 0:03:00.9]} 1... Nf6 {[%clk 0:02:58.1]} 2. c4 {[%clk 0:03:00.7]}
2... e6 {[%clk 0:02:58.2]} 3. Nf3 {[%clk 0:03:00.7]} 3... d5 {[%clk 0:02:57.5]}
4. Nc3 {[%clk 0:02:59.9]} 4... Bb4 {[%clk 0:02:57.3]} 5. Qa4+ {[%clk 0:02:58.6]}
5... Nc6 {[%clk 0:02:57.1]} 6. e3 {[%clk 0:02:58.7]} 6... O-O {[%clk 0:02:55.7]}
7. Bd2 {[%clk 0:02:58.2]} 7... Bd7 {[%clk 0:02:51.7]} 8. Qc2 {[%clk 0:02:57.3]}
8... a6 {[%clk 0:02:48.3]} 9. Be2 {[%clk 0:02:45.8]} 9... Ne7 {[%clk 0:02:44.1]}
10. O-O {[%clk 0:02:34]} 10... c5 {[%clk 0:02:37.3]} 11. dxc5 {[%clk 0:02:31.4]}
11... Rc8 {[%clk 0:02:31]} 12. cxd5 {[%clk 0:02:11.3]} 12... exd5 {[%clk
0:02:18.2]} 13. a3 {[%clk 0:02:05]} 13... Bxc5 {[%clk 0:02:07.1]} 14. b4 {[%clk
0:01:56.5]} 14... Bd6 {[%clk 0:02:03.9]} 15. Qb2 {[%clk 0:01:51.8]} 15... Ne4
{[%clk 0:01:47.6]} 16. Rfd1 {[%clk 0:01:48]} 16... Qc7 {[%clk 0:01:24.9]} 17.
Rac1 {[%clk 0:01:41.2]} 17... Qb8 {[%clk 0:01:23.7]} 18. Be1 {[%clk 0:01:40.4]}
18... Be6 {[%clk 0:01:18.2]} 19. h3 {[%clk 0:01:38.1]} 19... Rfd8 {[%clk
0:00:37.8]} 20. Na4 {[%clk 0:01:30.6]} 20... Ng6 {[%clk 0:00:33.5]} 21. Rxc8
{[%clk 0:01:26.6]} 21... Rxc8 {[%clk 0:00:30.5]} 22. Nb6 {[%clk 0:01:26.5]}
22... Rd8 {[%clk 0:00:30.9]} 23. a4 {[%clk 0:01:17]} 23... Ne5 {[%clk
0:00:20.9]} 24. Nd4 {[%clk 0:01:12.1]} 24... Nc4 {[%clk 0:00:19]} 25. Bxc4
{[%clk 0:01:09.7]} 25... dxc4 {[%clk 0:00:17.2]} 26. Nxe6 {[%clk 0:01:02.2]}
26... fxe6 {[%clk 0:00:15]} 27. Kf1 {[%clk 0:00:57.9]} 27... Qc7 {[%clk
0:00:13.4]} 28. Qd4 {[%clk 0:00:51.1]} 28... Be7 {[%clk 0:00:09.6]} 29. Qxe4
{[%clk 0:00:48.4]} 29... Rxd1 {[%clk 0:00:09.5]} 30. Qxe6+ {[%clk 0:00:48.5]}
30... Kf8 {[%clk 0:00:09.2]} 31. Nd5 {[%clk 0:00:38]} 31... Qd6 {[%clk
0:00:05.5]} 32. Qf5+ {[%clk 0:00:34.3]} 32... Kg8 {[%clk 0:00:05.1]} 33. Nxe7+
{[%clk 0:00:22.9]} 33... Qxe7 {[%clk 0:00:06]} 34. Qc8+ {[%clk 0:00:23.1]} 34...
Rd8 {[%clk 0:00:04.1]} 35. Qxc4+ {[%clk 0:00:23.4]} 35... Kh8 {[%clk 0:00:04.7]}
36. Bc3 {[%clk 0:00:20.7]} 36... Qd7 {[%clk 0:00:04.9]} 37. Bd4 {[%clk
0:00:19.7]} 37... b5 {[%clk 0:00:04.6]} 38. axb5 {[%clk 0:00:18.8]} 38... axb5
{[%clk 0:00:05.1]} 39. Qe2 {[%clk 0:00:15.3]} 39... Qc6 {[%clk 0:00:05.1]} 40.
Kg1 {[%clk 0:00:14.1]} 40... Ra8 {[%clk 0:00:04.9]} 41. Bc5 {[%clk 0:00:12.7]}
41... Rd8 {[%clk 0:00:04.6]} 42. Bd4 {[%clk 0:00:11.9]} 42... Ra8 {[%clk
0:00:04.1]} 43. Qg4 {[%clk 0:00:11.4]} 43... Rg8 {[%clk 0:00:03.8]} 44. Kh2
{[%clk 0:00:10.7]} 44... Qc4 {[%clk 0:00:04]} 45. Qd7 {[%clk 0:00:06.3]} 45...
Qxb4 {[%clk 0:00:03.5]} 46. h4 {[%clk 0:00:05.8]} 46... Qf8 {[%clk 0:00:03.3]}
47. h5 {[%clk 0:00:05.5]} 47... Qe8 {[%clk 0:00:03.9]} 48. Bxg7+ {[%clk
0:00:04.3]} 1-0

[Event "*** Titled Tuesday Blitz"]
[Site "Chess.com"]
[Date "2020.05.26"]
[Round "2"]
[White "awesomevishesh"]
[Black "mohssenbinaddi"]
[Result "1-0"]
[WhiteElo "2422"]
[BlackElo "2189"]
[TimeControl "180+1"]
[EndTime "10:18:19 PDT"]
[Termination "awesomevishesh won on time"]

1. d4 {[%clk 0:03:00.9]} 1... Nf6 {[%clk 0:02:59.3]} 2. c4 {[%clk 0:03:00.5]}
2... c6 {[%clk 0:02:59.2]} 3. Nf3 {[%clk 0:02:59.1]} 3... d5 {[%clk 0:03:00.1]}
4. e3 {[%clk 0:02:59.1]} 4... g6 {[%clk 0:02:59.5]} 5. Nc3 {[%clk 0:02:58.5]}
5... Bg7 {[%clk 0:02:59.3]} 6. Be2 {[%clk 0:02:58.4]} 6... O-O {[%clk 0:02:59]}
7. O-O {[%clk 0:02:58.3]} 7... dxc4 {[%clk 0:02:59.5]} 8. Bxc4 {[%clk
0:02:58.1]} 8... b5 {[%clk 0:03:00.4]} 9. Be2 {[%clk 0:02:44.6]} 9... a6 {[%clk
0:02:59.9]} 10. a3 {[%clk 0:02:37.7]} 10... Nbd7 {[%clk 0:02:55.3]} 11. e4
{[%clk 0:02:36.6]} 11... Qc7 {[%clk 0:02:41.6]} 12. e5 {[%clk 0:02:23.6]} 12...
Nd5 {[%clk 0:02:40.7]} 13. Nxd5 {[%clk 0:02:23.5]} 13... cxd5 {[%clk 0:02:40]}
14. Bg5 {[%clk 0:02:17.7]} 14... Nb6 {[%clk 0:02:39]} 15. Rc1 {[%clk 0:02:16.9]}
15... Qd7 {[%clk 0:02:38.8]} 16. b3 {[%clk 0:02:11.4]} 16... Bb7 {[%clk
0:02:28.7]} 17. Qd2 {[%clk 0:02:10.7]} 17... Rac8 {[%clk 0:02:17.5]} 18. Qa5
{[%clk 0:01:57.3]} 18... Na8 {[%clk 0:02:16.7]} 19. a4 {[%clk 0:01:49.5]} 19...
f6 {[%clk 0:01:55.3]} 20. exf6 {[%clk 0:01:43.7]} 20... exf6 {[%clk 0:01:55]}
21. Be3 {[%clk 0:01:32.3]} 21... Nc7 {[%clk 0:01:53.2]} 22. Ne1 {[%clk
0:01:18.9]} 22... f5 {[%clk 0:01:38.5]} 23. Nd3 {[%clk 0:01:13.9]} 23... f4
{[%clk 0:01:34]} 24. Bxf4 {[%clk 0:01:09.3]} 24... Ne6 {[%clk 0:01:27.7]} 25.
Ne5 {[%clk 0:01:03.6]} 25... Qd6 {[%clk 0:01:15.9]} 26. Be3 {[%clk 0:00:55.1]}
26... Nxd4 {[%clk 0:01:10.5]} 27. Bxd4 {[%clk 0:00:48.4]} 27... Bxe5 {[%clk
0:01:10.4]} 28. Bxe5 {[%clk 0:00:45.9]} 28... Qxe5 {[%clk 0:01:10.5]} 29. Rxc8
{[%clk 0:00:34.2]} 29... Rxc8 {[%clk 0:01:07.5]} 30. Bg4 {[%clk 0:00:33.8]}
30... Rf8 {[%clk 0:01:01.7]} 31. Qb6 {[%clk 0:00:32]} 31... Bc8 {[%clk 0:00:39]}
32. Bxc8 {[%clk 0:00:31.2]} 32... Rxc8 {[%clk 0:00:38.3]} 33. Qxa6 {[%clk
0:00:31.2]} 33... Rc3 {[%clk 0:00:25.9]} 34. Qxb5 {[%clk 0:00:29.2]} 34... Qe4
{[%clk 0:00:22.2]} 35. h3 {[%clk 0:00:23.1]} 35... d4 {[%clk 0:00:21.1]} 36. Qb4
{[%clk 0:00:15.7]} 36... Qc2 {[%clk 0:00:18.5]} 37. Qxd4 {[%clk 0:00:11.3]}
37... Qxb3 {[%clk 0:00:17.4]} 38. Re1 {[%clk 0:00:09.2]} 38... Rc8 {[%clk
0:00:10.5]} 39. Qd7 {[%clk 0:00:07.3]} 39... Rf8 {[%clk 0:00:07.1]} 40. f3
{[%clk 0:00:04.7]} 40... Qb6+ {[%clk 0:00:06.2]} 41. Kh1 {[%clk 0:00:05]} 41...
Qf2 {[%clk 0:00:05.9]} 42. Rd1 {[%clk 0:00:04.2]} 42... Qe2 {[%clk 0:00:01.9]}
43. Qd5+ {[%clk 0:00:04.1]} 43... Rf7 {[%clk 0:00:01.1]} 44. a5 {[%clk
0:00:04.5]} 1-0